bitfinex/quotes_BTCUSD_20251010
["timestamp","ask_amount","ask_price","bid_price","bid_amount"]
[1760099547090,0.29731821,121720.0,121710.0,0.5630305]
[1760099547308,0.29731821,121720.0,121710.0,0.6430273]
[1760099547519,0.06555821,121720.0,121710.0,0.6430273]
[1760099547949,0.29731821,121720.0,121710.0,0.6430273]
[1760099548387,0.06555821,121720.0,121710.0,0.6430273]
[1760099548606,0.06555821,121720.0,121710.0,0.95790936]
[1760099550617,0.06555821,121720.0,121710.0,1.27914509]
[1760099550831,0.06555821,121720.0,121710.0,0.95786936]
[1760099551677,0.06555821,121720.0,121710.0,1.27914509]
[1760099551920,0.06555821,121720.0,121710.0,0.95786936]
[1760099552147,0.06555821,121720.0,121710.0,1.04942509]
[1760099552367,0.06555821,121720.0,121710.0,1.28114509]
[1760099553046,0.06555821,121720.0,121710.0,1.28122509]
[1760099553260,0.06555821,121720.0,121710.0,1.04942509]
[1760099553911,0.06555821,121720.0,121710.0,1.28122509]
[1760099554130,0.06555821,121720.0,121710.0,1.04942509]
[1760099554349,0.06555821,121720.0,121710.0,1.28118509]
[1760099556692,0.06555821,121720.0,121710.0,1.04942509]
[1760099557017,0.06555821,121720.0,121710.0,0.72814936]
[1760099557238,0.06555821,121720.0,121710.0,0.32687683]
[1760099557451,0.06555821,121720.0,121710.0,0.87991256]
[1760099557917,0.06555821,121720.0,121710.0,0.64815256]
[1760099558355,0.06555821,121720.0,121710.0,0.87991256]
[1760099559627,0.06555821,121720.0,121710.0,0.55863683]
[1760099560483,0.06555821,121720.0,121710.0,0.63863363]
[1760099562756,0.06555821,121720.0,121710.0,0.83502674]
[1760099562986,0.06555821,121720.0,121710.0,1.06674674]
[1760099563714,0.06555821,121720.0,121710.0,0.83502674]
[1760099563937,0.06555821,121720.0,121710.0,1.06674674]
[1760099564621,0.06555821,121720.0,121710.0,0.83502674]
[1760099564841,0.06555821,121720.0,121710.0,1.06674674]
[1760099565047,0.06555821,121720.0,121710.0,0.83502674]
[1760099565314,0.06555821,121720.0,121710.0,1.06674674]
[1760099568031,0.06555821,121720.0,121710.0,0.83502674]
[1760099568240,0.06555821,121720.0,121710.0,1.06674674]
[1760099569944,0.06555821,121720.0,121710.0,0.83502674]
[1760099570393,0.06555821,121720.0,121710.0,1.06674674]
[1760099570632,0.06555821,121720.0,121710.0,1.63333175]
[1760099570836,0.06555821,121720.0,121710.0,1.20517864]
[1760099571048,0.06555821,121720.0,121710.0,1.43689864]
[1760099578405,0.06555821,121720.0,121710.0,1.20517864]
[1760099578631,0.06555821,121720.0,121710.0,1.00874553]
[1760099578854,0.06555821,121720.0,121710.0,1.43689864]
[1760099580977,0.06555821,121720.0,121710.0,1.20517864]
[1760099581406,0.06555821,121720.0,121710.0,1.43689864]
[1760099581616,0.06555821,121720.0,121710.0,1.20517864]
[1760099582044,0.00034563,121740.0,121730.0,0.16429803]
[1760099582275,0.00034563,121740.0,121730.0,0.75047484]
[1760099582276,0.0004282,121740.0,121730.0,0.75047484]
[1760099582492,0.0004282,121740.0,121730.0,1.02169484]
[1760099582934,0.0004282,121740.0,121730.0,1.0463859]
[1760099583377,0.0004282,121740.0,121730.0,1.10805679]
[1760099583808,0.0004282,121740.0,121730.0,1.11833037]
[1760099584500,0.0004282,121740.0,121730.0,1.22661037]
[1760099584709,0.0004282,121740.0,121730.0,1.45833037]
[1760099586454,0.0004282,121740.0,121730.0,1.22661037]
[1760099586896,0.0004282,121740.0,121730.0,0.79845726]
[1760099587139,0.0004282,121740.0,121730.0,1.54385037]
[1760099587552,0.0004282,121740.0,121730.0,1.22661037]
[1760099587746,0.0004282,121740.0,121730.0,1.54385037]
[1760099588853,0.0004282,121740.0,121730.0,1.31213037]
[1760099589057,0.0004282,121740.0,121730.0,1.54385037]
[1760099589266,0.0004282,121740.0,121730.0,1.45833037]
[1760099589480,0.0004282,121740.0,121730.0,1.54385037]
[1760099590327,0.0004282,121740.0,121730.0,1.22661037]
[1760099590526,0.17245626,121770.0,121760.0,0.16425755]
[1760099590905,0.1739931,121770.0,121760.0,0.53030961]
[1760099592008,0.17316802,121770.0,121760.0,0.53030961]
[1760099592866,0.60132113,121770.0,121760.0,0.05121]
[1760099593828,0.60132113,121770.0,121760.0,0.21546755]
[1760099594032,0.60132113,121770.0,121760.0,0.05121]
[1760099596750,0.17316802,121770.0,121760.0,0.05121]
[1760099596960,0.60132113,121770.0,121760.0,0.05121]
[1760099599234,1.24132113,121770.0,121760.0,0.02804]
[1760099599441,0.16425755,121760.0,121750.0,0.01184]
[1760099599653,0.16427104,121750.0,121740.0,0.03501]
[1760099599861,0.16427104,121750.0,121740.0,0.05121]
[1760099599862,0.59242415,121750.0,121740.0,0.05121]
[1760099600697,0.16428454,121740.0,121730.0,0.01184]
[1760099600903,0.59243765,121740.0,121730.0,0.01184]
[1760099601129,0.59243765,121740.0,121730.0,0.02804]
[1760099601772,0.82423765,121740.0,121730.0,0.02804]
[1760099602020,0.83251563,121740.0,121730.0,0.21550803]
[1760099602208,0.83251563,121740.0,121730.0,0.21650803]
[1760099602421,0.83251563,121740.0,121730.0,0.05221]
[1760099602826,0.83251563,121740.0,121730.0,0.21650803]
[1760099603230,0.83251563,121740.0,121730.0,0.21750803]
[1760099603658,0.83251563,121740.0,121730.0,0.03004]
[1760099605727,0.83251563,121740.0,121730.0,0.19433803]
[1760099605925,0.83251563,121740.0,121730.0,0.21750803]
[1760099606156,0.83251563,121740.0,121730.0,0.19433803]
[1760099606707,0.83251563,121740.0,121730.0,0.25779681]
[1760099606708,0.40436252,121740.0,121730.0,0.25779681]
[1760099606926,0.83251563,121740.0,121730.0,0.21750803]
[1760099607422,0.16428454,121740.0,121730.0,0.21750803]
[1760099607619,0.39608454,121740.0,121730.0,0.21750803]
[1760099608026,0.16428454,121740.0,121730.0,0.05321]
[1760099608208,0.39608454,121740.0,121730.0,0.05321]
[1760099608411,0.39608454,121740.0,121730.0,0.03004]
[1760099608723,0.40446314,121740.0,121730.0,0.03004]
[1760099608949,0.17266314,121740.0,121730.0,0.03004]
[1760099609197,0.83261625,121740.0,121730.0,0.03004]
[1760099609449,0.60081625,121740.0,121730.0,0.03004]
[1760099609674,1.17261625,121740.0,121730.0,0.002]
[1760099610140,1.41905625,121740.0,121730.0,0.002]
[1760099610316,1.41905625,121740.0,121730.0,0.001]
[1760099610525,1.41905625,121740.0,121730.0,0.0172]
[1760099610735,1.41905625,121740.0,121730.0,0.02904]
[1760099610873,1.41905625,121740.0,121730.0,0.02804]
[1760099611126,1.18725625,121740.0,121730.0,0.02804]
[1760099611328,1.41905625,121740.0,121730.0,0.02804]
[1760099611558,1.41905625,121740.0,121730.0,0.05121]
[1760099615284,0.75072454,121740.0,121730.0,0.09047839]
[1760099615518,0.75072454,121740.0,121730.0,0.25477642]
[1760099615743,0.98252454,121740.0,121730.0,0.23834662]
[1760099615969,0.98252454,121740.0,121730.0,0.07404859]
[1760099616199,0.98252454,121740.0,121730.0,0.25477642]
[1760099616435,0.98252454,121740.0,121730.0,0.23834662]
[1760099616661,0.98252454,121740.0,121730.0,0.07404859]
[1760099616919,0.98252454,121740.0,121730.0,0.09047839]
[1760099619567,1.30360964,121740.0,121730.0,0.09047839]
[1760099622221,1.30360964,121740.0,121730.0,0.05121]
[1760099622449,1.07180964,121740.0,121730.0,0.05121]
[1760099622659,1.30356964,121740.0,121730.0,0.02804]
[1760099624170,1.07180964,121740.0,121730.0,0.02804]
[1760099624386,0.75072454,121740.0,121730.0,0.0692298]
[1760099624598,1.30360964,121740.0,121730.0,0.0938704]
[1760099625275,1.30360964,121740.0,121730.0,0.0774406]
[1760099625489,1.30360964,121740.0,121730.0,0.0528]
[1760099625926,0.98252454,121740.0,121730.0,0.0528]
[1760099626136,1.30360964,121740.0,121730.0,0.0528]
[1760099626868,1.07180964,121740.0,121730.0,0.0528]
[1760099627104,1.30360964,121740.0,121730.0,0.09222742]
[1760099628308,1.07180964,121740.0,121730.0,0.07579762]
[1760099628480,1.30360964,121740.0,121730.0,0.07579762]
[1760099629097,1.30360964,121740.0,121730.0,0.02804]
[1760099629507,0.98252454,121740.0,121730.0,0.21520803]
[1760099629707,1.07180964,121740.0,121730.0,0.21520803]
[1760099630090,1.30360964,121740.0,121730.0,0.21520803]
[1760099630514,1.30360964,121740.0,121730.0,0.05091]
[1760099630726,1.30360964,121740.0,121730.0,0.0673398]
[1760099630934,1.30360964,121740.0,121730.0,0.05091]
[1760099632818,0.98252454,121740.0,121730.0,0.21520803]
[1760099633019,1.30360964,121740.0,121730.0,0.21520803]
[1760099633622,1.30360964,121740.0,121730.0,0.05091]
[1760099634083,1.30360964,121740.0,121730.0,0.21520803]
[1760099637326,0.98252454,121740.0,121730.0,0.21520803]
[1760099637536,1.30360964,121740.0,121730.0,0.21520803]
[1760099637979,0.24644,121740.0,121730.0,0.60763953]
[1760099638388,0.4782,121740.0,121730.0,0.60763953]
[1760099639057,0.24644,121740.0,121730.0,0.60763953]
[1760099639275,0.24644,121740.0,121730.0,0.28655443]
[1760099639485,0.4782,121740.0,121730.0,0.60763953]
[1760099640344,0.24644,121740.0,121730.0,0.60763953]
[1760099640558,0.47824,121740.0,121730.0,0.60763953]
[1760099640987,0.24644,121740.0,121730.0,0.60763953]
[1760099641949,0.24644,121740.0,121730.0,0.60863953]
[1760099642593,0.24644,121740.0,121730.0,0.60963953]
[1760099642820,0.4782,121740.0,121730.0,0.53829313]
[1760099643246,0.4782,121740.0,121730.0,0.21720803]
[1760099643910,0.96356964,121740.0,121730.0,0.21720803]
[1760099644147,0.73180964,121740.0,121730.0,0.21720803]
[1760099644395,1.28473474,121740.0,121730.0,0.03004]
[1760099644616,0.96364964,121740.0,121730.0,0.01384]
[1760099644838,0.41072454,121740.0,121730.0,0.21716803]
[1760099645064,0.64256454,121740.0,121730.0,0.25028711]
[1760099645794,0.41072454,121740.0,121730.0,0.25028711]
[1760099646013,0.64256454,121740.0,121730.0,0.19449803]
[1760099646939,0.96364964,121740.0,121730.0,0.19449803]
[1760099647122,0.96364964,121740.0,121730.0,0.21716803]
[1760099647767,0.73180964,121740.0,121730.0,0.21716803]
[1760099648218,0.41072454,121740.0,121730.0,0.28871087]
[1760099648430,0.47824,121740.0,121730.0,0.60979597]
[1760099648642,0.64252454,121740.0,121730.0,0.60979597]
[1760099648846,0.64252454,121740.0,121730.0,0.28871087]
[1760099649267,0.64252454,121740.0,121730.0,0.21716803]
[1760099649517,0.41072454,121740.0,121730.0,0.21716803]
[1760099649725,0.64256454,121740.0,121730.0,0.21716803]
[1760099650145,0.64202692,121740.0,121730.0,0.21716803]
[1760099650804,0.47770238,121740.0,121730.0,0.21716803]
[1760099651013,0.47770238,121740.0,121730.0,0.60979597]
[1760099651224,0.24590238,121740.0,121730.0,0.60979597]
[1760099651437,0.47774238,121740.0,121730.0,0.60979597]
[1760099652348,0.24590238,121740.0,121730.0,0.60979597]
[1760099652558,0.47778238,121740.0,121730.0,0.60979597]
[1760099653184,0.24590238,121740.0,121730.0,0.60979597]
[1760099653413,0.47778238,121740.0,121730.0,0.60979597]
[1760099655808,0.24590238,121740.0,121730.0,0.60979597]
[1760099656286,0.24590238,121740.0,121730.0,0.84163597]
[1760099656492,0.24590238,121740.0,121730.0,0.60979597]
[1760099656710,0.24590238,121740.0,121730.0,0.28871087]
[1760099656925,0.24590238,121740.0,121730.0,0.77009313]
[1760099658669,0.24590238,121740.0,121730.0,0.53825313]
[1760099658877,0.24590238,121740.0,121730.0,0.77009313]
[1760099661949,0.24590238,121740.0,121730.0,0.53825313]
[1760099662181,0.24590238,121740.0,121730.0,0.70137199]
[1760099662653,0.24590238,121740.0,121730.0,0.94160409]
[1760099662861,0.24590238,121740.0,121730.0,1.26268919]
[1760099663731,0.24590238,121740.0,121730.0,0.94160409]
[1760099663915,0.24590238,121740.0,121730.0,1.26268919]
[1760099664127,0.24590238,121740.0,121730.0,0.70972409]
[1760099664337,0.24590238,121740.0,121730.0,0.95794541]
[1760099664538,0.24590238,121740.0,121730.0,0.72606541]
[1760099664809,0.24590238,121740.0,121730.0,0.96634637]
[1760099665290,0.24590238,121740.0,121730.0,0.64526127]
[1760099665555,0.24590238,121740.0,121730.0,0.96634637]
[1760099666461,0.24590238,121740.0,121730.0,0.96630637]
[1760099667865,0.24590238,121740.0,121730.0,0.73446637]
[1760099668052,0.24590238,121740.0,121730.0,0.32498351]
[1760099668265,0.24590238,121740.0,121730.0,0.55682351]
[1760099668468,0.24590238,121740.0,121730.0,0.87790861]
[1760099668706,0.24590238,121740.0,121730.0,0.65421918]
[1760099669200,0.24590238,121740.0,121730.0,0.88605918]
[1760099669427,0.24590238,121740.0,121730.0,0.96605598]
[1760099669876,0.24590238,121740.0,121730.0,0.73421598]
[1760099670076,0.24590238,121740.0,121730.0,0.96605598]
[1760099670324,0.24590238,121740.0,121730.0,0.73421598]
[1760099670531,0.24590238,121740.0,121730.0,0.96605598]
[1760099670766,0.24590238,121740.0,121730.0,0.73421598]
[1760099670952,0.05276328,121740.0,121730.0,0.96605598]
[1760099671087,0.05276328,121740.0,121730.0,0.72606541]
[1760099671320,0.05276328,121740.0,121730.0,0.95790541]
[1760099671545,0.05276328,121740.0,121730.0,0.63682031]
[1760099674095,0.05276328,121740.0,121730.0,0.40498031]
[1760099674347,0.05276328,121740.0,121730.0,0.63682031]
[1760099675438,0.05276328,121740.0,121730.0,0.63678031]
[1760099677115,0.05276328,121740.0,121730.0,0.40498031]
[1760099677329,0.05276328,121740.0,121730.0,0.63678031]
[1760099677809,0.05276328,121740.0,121730.0,0.72606541]
[1760099678019,0.05276328,121740.0,121730.0,1.27895051]
[1760099678669,0.05276328,121740.0,121730.0,1.34015937]
[1760099678886,0.05276328,121740.0,121730.0,1.71035127]
[1760099679167,0.05276328,121740.0,121730.0,1.71039127]
[1760099679818,0.05276328,121740.0,121730.0,1.70939127]
[1760099680299,0.05276328,121740.0,121730.0,1.71039127]
[1760099680535,0.05276328,121740.0,121730.0,1.56303127]
[1760099680765,0.05276328,121740.0,121730.0,1.79587127]
[1760099681229,0.05276328,121740.0,121730.0,1.56403127]
[1760099681693,0.05276328,121740.0,121730.0,1.58151459]
[1760099682797,0.05276328,121740.0,121730.0,1.26415459]
[1760099683054,0.05276328,121740.0,121730.0,1.58151459]
[1760099683280,0.05276328,121740.0,121730.0,1.49599459]
[1760099683503,0.05276328,121740.0,121730.0,1.58151459]
[1760099683730,0.05276328,121740.0,121730.0,1.34967459]
[1760099683949,0.05276328,121740.0,121730.0,1.58151459]
[1760099688723,0.05276328,121740.0,121730.0,1.15370107]
[1760099688942,0.05276328,121740.0,121730.0,1.58151459]
[1760099691466,0.05276328,121740.0,121730.0,1.34967459]
[1760099691694,0.05276328,121740.0,121730.0,1.58143459]
[1760099694122,0.05276328,121740.0,121730.0,1.26415459]
[1760099694346,0.05276328,121740.0,121730.0,1.58143459]
[1760099695497,0.05276328,121740.0,121730.0,1.26415459]
[1760099695712,0.05276328,121740.0,121730.0,1.58143459]
[1760099699317,0.00051236,121750.0,121740.0,0.16428454]
[1760099699550,0.00051236,121750.0,121740.0,1.03917537]
[1760099699810,0.00051236,121750.0,121740.0,1.03924692]
[1760099700029,0.00051236,121750.0,121740.0,1.06393448]
[1760099700510,0.00051236,121750.0,121740.0,1.40493448]
[1760099700752,0.00051236,121750.0,121740.0,0.97712096]
[1760099700990,0.00051236,121750.0,121740.0,1.40493448]
[1760099701422,0.00051236,121750.0,121740.0,1.40593448]
[1760099701849,0.00051236,121750.0,121740.0,1.17417448]
[1760099702055,0.00051236,121750.0,121740.0,1.40593448]
[1760099702267,0.00051236,121750.0,121740.0,1.40597448]
[1760099703376,0.00051236,121750.0,121740.0,1.40593448]
[1760099706140,0.06619503,121780.0,121770.0,0.16424406]
[1760099706383,0.06619503,121780.0,121770.0,0.73836846]
[1760099706384,0.00015088,121780.0,121770.0,0.73836846]
[1760099706609,0.00015088,121780.0,121770.0,0.99215406]
[1760099706836,0.00015088,121780.0,121770.0,0.79344843]
[1760099707075,0.00015088,121780.0,121770.0,0.5890652]
[1760099707799,0.00015088,121780.0,121770.0,0.65011232]
[1760099709439,0.00015088,121780.0,121770.0,0.65111232]
[1760099711071,0.00015088,121780.0,121770.0,0.65107232]
[1760099711748,0.00168753,121780.0,121770.0,0.65107232]
[1760099712865,0.00168753,121780.0,121770.0,0.41931232]
[1760099713295,0.00168753,121780.0,121770.0,0.65107232]
[1760099716466,0.00168753,121780.0,121770.0,0.41931232]
[1760099716705,0.00168753,121780.0,121770.0,0.65103232]
[1760099717874,0.42950105,121780.0,121770.0,0.56271298]
[1760099718101,0.00168753,121780.0,121770.0,0.56271298]
[1760099718963,0.42950105,121780.0,121770.0,0.32278078]
[1760099719344,0.42950105,121780.0,121770.0,0.55454078]
[1760099722789,0.00168753,121780.0,121770.0,0.55454078]
[1760099723028,0.42950105,121780.0,121770.0,0.61347591]
[1760099723595,0.59373162,121780.0,121770.0,0.07541466]
[1760099723804,0.59373162,121780.0,121770.0,0.02568466]
[1760099723968,0.59373162,121780.0,121770.0,0.46017872]
[1760099724202,0.59373162,121780.0,121770.0,0.44677406]
[1760099724635,0.59373162,121780.0,121770.0,0.44577406]
[1760099725664,0.59373162,121780.0,121770.0,0.42294406]
[1760099729235,0.59373162,121780.0,121770.0,0.44577406]
[1760099729659,0.42950105,121780.0,121770.0,0.27857283]
[1760099729866,0.42950105,121780.0,121770.0,0.51037283]
[1760099730789,0.59373162,121780.0,121770.0,0.51037283]
[1760099730977,0.59373162,121780.0,121770.0,0.51033283]
[1760099731969,0.59373162,121780.0,121770.0,0.44573406]
[1760099732185,0.84009162,121780.0,121770.0,0.44573406]
[1760099733658,0.67586105,121780.0,121770.0,0.44573406]
[1760099734711,0.67586105,121780.0,121770.0,0.21397406]
[1760099735124,0.67586105,121780.0,121770.0,0.44573406]
[1760099735298,0.67586105,121780.0,121770.0,0.27856883]
[1760099735547,0.24804753,121780.0,121770.0,0.51032883]
[1760099737402,0.24804753,121780.0,121770.0,0.27856883]
[1760099737532,0.24804753,121780.0,121770.0,0.51032883]
[1760099738509,0.67586105,121780.0,121770.0,0.51032883]
[1760099739981,0.84009162,121780.0,121770.0,0.24738]
[1760099740196,0.84009162,121780.0,121770.0,0.23176]
[1760099740432,0.84009162,121780.0,121770.0,0.39600406]
[1760099740659,0.84009162,121780.0,121770.0,0.41111406]
[1760099741111,0.84009162,121780.0,121770.0,0.42259406]
[1760099742299,1.07181162,121780.0,121770.0,0.19083406]
[1760099743506,0.4122781,121780.0,121770.0,0.21437406]
[1760099743718,0.88990749,121780.0,121770.0,0.25583283]
[1760099743929,1.12162749,121780.0,121770.0,0.25583283]
[1760099744135,0.80069751,121780.0,121770.0,0.48755283]
[1760099744350,0.96492808,121780.0,121770.0,0.44609406]
[1760099744783,1.28585806,121780.0,121770.0,0.44609406]
[1760099744994,1.28585806,121780.0,121770.0,0.42255406]
[1760099745664,1.28585806,121780.0,121770.0,0.44609406]
[1760099746083,1.28585806,121780.0,121770.0,0.21437406]
[1760099746823,1.12162749,121780.0,121770.0,0.21437406]
[1760099746972,1.12162749,121780.0,121770.0,0.27900483]
[1760099748320,0.88990749,121780.0,121770.0,0.27900483]
[1760099748502,1.12162749,121780.0,121770.0,0.27900483]
[1760099748672,0.88990749,121780.0,121770.0,0.27900483]
[1760099749011,1.28585806,121780.0,121770.0,0.21437406]
[1760099749171,1.28585806,121780.0,121770.0,0.05013]
[1760099749396,1.28585806,121780.0,121760.0,0.2230036]
[1760099749602,0.80610402,121770.0,121750.0,0.19833736]
[1760099749789,0.34596406,121770.0,121760.0,0.16425755]
[1760099749985,0.59232406,121770.0,121750.0,0.45669509]
[1760099750366,0.59232406,121770.0,121760.0,0.01601]
[1760099750591,0.36060406,121770.0,121760.0,0.01601]
[1760099750841,1.23422402,121770.0,121760.0,0.19235755]
[1760099751476,1.23422402,121770.0,121760.0,0.0281]
[1760099751902,0.36060406,121770.0,121760.0,0.0281]
[1760099752399,1.23422402,121770.0,121760.0,0.0281]
[1760099752609,1.00246402,121770.0,121760.0,0.0281]
[1760099752830,1.23422402,121770.0,121760.0,0.0281]
[1760099753508,1.23422402,121770.0,121760.0,0.0291]
[1760099753943,0.91329404,121770.0,121760.0,0.0291]
[1760099754201,1.57422402,121770.0,121760.0,0.001]
[1760099754450,1.34246402,121770.0,121760.0,0.001]
[1760099754886,1.66072854,121770.0,121760.0,0.001]
[1760099755133,1.42896854,121770.0,121760.0,0.001]
[1760099755334,1.66072854,121770.0,121760.0,0.001]
[1760099755746,1.42896854,121770.0,121760.0,0.001]
[1760099755885,1.66072854,121770.0,121760.0,0.001]
[1760099756088,0.16427104,121750.0,121740.0,0.1847378]
[1760099756317,0.73156102,121750.0,121740.0,0.2235378]
[1760099756477,0.96332102,121750.0,121740.0,0.2235378]
[1760099756687,0.96332102,121750.0,121740.0,0.21532454]
[1760099757108,0.73156102,121750.0,121740.0,0.21532454]
[1760099757304,0.96332102,121750.0,121740.0,0.21532454]
[1760099757507,0.73156102,121750.0,121740.0,0.19353454]
[1760099757733,0.96332102,121750.0,121740.0,0.19353454]
[1760099758064,0.96332102,121750.0,121740.0,0.02925]
[1760099758292,1.284251,121750.0,121740.0,0.02925]
[1760099758500,1.052491,121750.0,121740.0,0.02925]
[1760099758690,1.29237992,121750.0,121740.0,0.02925]
[1760099759129,1.29237992,121750.0,121740.0,0.19353454]
[1760099759345,1.06061992,121750.0,121740.0,0.19353454]
[1760099759575,0.97148994,121750.0,121740.0,0.21632454]
[1760099759778,0.97148994,121750.0,121740.0,0.2246643]
[1760099760022,0.56728998,121750.0,121740.0,0.2246643]
[1760099760240,0.56728998,121750.0,121740.0,0.2236643]
[1760099760241,0.79908998,121750.0,121740.0,0.2236643]
[1760099761069,0.96336102,121750.0,121740.0,0.2236643]
[1760099761416,0.96336102,121750.0,121740.0,0.21532454]
[1760099761622,0.56728998,121750.0,121740.0,0.21532454]
[1760099762058,0.24636,121750.0,121740.0,0.21532454]
[1760099762260,0.24636,121750.0,121740.0,0.53625452]
[1760099762463,0.24636,121750.0,121740.0,0.21532454]
[1760099762665,0.24636,121750.0,121740.0,0.29532134]
[1760099763296,0.24636,121750.0,121740.0,0.29632134]
[1760099764509,0.56728998,121750.0,121740.0,0.29632134]
[1760099764874,0.24636,121750.0,121740.0,0.29632134]
[1760099766373,0.56728998,121750.0,121740.0,0.29632134]
[1760099767331,0.24636,121750.0,121740.0,0.29632134]
[1760099767538,0.56728998,121750.0,121740.0,0.29632134]
[1760099770113,0.73156102,121750.0,121740.0,0.21632454]
[1760099770350,0.96344102,121750.0,121740.0,0.21632454]
[1760099771077,0.73156102,121750.0,121740.0,0.21632454]
[1760099771311,0.96344102,121750.0,121740.0,0.21632454]
[1760099774241,0.56728998,121750.0,121740.0,0.21632454]
[1760099774467,0.79912998,121750.0,121740.0,0.21632454]
[1760099775623,0.79912998,121750.0,121740.0,0.27973833]
[1760099776358,0.56728998,121750.0,121740.0,0.27973833]
[1760099778992,0.24636,121750.0,121740.0,0.27973833]
[1760099779206,0.56728998,121750.0,121740.0,0.51157833]
[1760099780500,0.24636,121750.0,121740.0,0.27973833]
[1760099780712,0.24636,121750.0,121740.0,0.51157833]
[1760099780931,0.56728998,121750.0,121740.0,0.51157833]
[1760099782669,0.56728998,121750.0,121740.0,0.27973833]
[1760099782911,0.56728998,121750.0,121740.0,0.51157833]
[1760099783339,0.56728998,121750.0,121740.0,0.51153833]
[1760099783809,0.56728998,121750.0,121740.0,0.27973833]
[1760099784244,0.56728998,121750.0,121740.0,0.51153833]
[1760099787137,0.36672539,121750.0,121740.0,0.51153833]
[1760099787591,0.36672539,121750.0,121740.0,0.27973833]
[1760099787813,0.36672539,121750.0,121740.0,0.51153833]
[1760099788932,0.36672539,121750.0,121740.0,0.27973833]
[1760099789369,0.36672539,121750.0,121740.0,0.51153833]
[1760099789792,0.36672539,121750.0,121740.0,0.27973833]
[1760099790014,0.36672539,121750.0,121740.0,0.51153833]
[1760099790469,0.36672539,121750.0,121740.0,0.27973833]
[1760099790699,0.36672539,121750.0,121740.0,0.51153833]
[1760099793466,0.04579541,121750.0,121740.0,0.51153833]
[1760099793708,0.36672539,121750.0,121740.0,0.51153833]
[1760099794520,0.36672539,121750.0,121740.0,0.51149833]
[1760099794939,0.04579541,121750.0,121740.0,0.51149833]
[1760099795189,0.36672539,121750.0,121740.0,0.51149833]
[1760099796586,0.36672539,121750.0,121740.0,0.27973833]
[1760099796982,0.36672539,121750.0,121740.0,0.51149833]
[1760099798231,0.04579541,121750.0,121740.0,0.51149833]
[1760099798475,0.36672539,121750.0,121740.0,0.51149833]
[1760099798882,0.04579541,121750.0,121740.0,0.27973833]
[1760099799142,0.04579541,121750.0,121740.0,0.91555037]
[1760099799345,0.04579541,121750.0,121740.0,0.71394227]
[1760099799558,0.04579541,121750.0,121740.0,0.95383143]
[1760099800165,0.04579541,121750.0,121740.0,0.72203143]
[1760099800341,0.36672539,121750.0,121740.0,0.2994466]
[1760099800579,0.36672539,121750.0,121740.0,0.5312466]
[1760099800762,0.36672539,121750.0,121740.0,0.2994466]
[1760099800965,0.04579541,121750.0,121740.0,0.5312866]
[1760099801124,0.36672539,121750.0,121740.0,0.2994466]
[1760099801527,0.36672539,121750.0,121740.0,0.5312866]
[1760099803538,0.36672539,121750.0,121740.0,0.2994466]
[1760099803722,0.36672539,121750.0,121740.0,0.5312866]
[1760099804146,0.36672539,121750.0,121740.0,0.2994466]
[1760099804349,0.36672539,121750.0,121740.0,0.5312866]
[1760099804546,0.04579541,121750.0,121740.0,0.5312866]
[1760099804756,0.36672539,121750.0,121740.0,0.5312866]
[1760099805207,0.04579541,121750.0,121740.0,0.5312866]
[1760099805443,0.36672539,121750.0,121740.0,0.5312466]
[1760099805658,0.47387439,121750.0,121740.0,0.2994466]
[1760099805848,0.47387439,121750.0,121740.0,0.5312466]
[1760099807105,0.47387439,121750.0,121740.0,0.2994466]
[1760099807316,0.47387439,121750.0,121740.0,0.5312466]
[1760099808556,0.47387439,121750.0,121740.0,0.60543758]
[1760099808762,0.47387439,121750.0,121740.0,0.5312466]
[1760099809159,0.47387439,121750.0,121740.0,0.2994466]
[1760099809369,0.47387439,121750.0,121740.0,0.5312466]
[1760099809583,0.47387439,121750.0,121740.0,0.2994466]
[1760099809783,0.47387439,121750.0,121740.0,0.5312466]
[1760099809981,0.47387439,121750.0,121740.0,0.2994466]
[1760099810189,0.47387439,121750.0,121740.0,0.5312466]
[1760099810617,0.47387439,121750.0,121740.0,0.2994466]
[1760099810822,0.47387439,121750.0,121740.0,0.60543758]
[1760099811028,0.47387439,121750.0,121740.0,0.37363758]
[1760099811239,0.47387439,121750.0,121740.0,0.5312466]
[1760099812478,0.47387439,121750.0,121740.0,0.2994466]
[1760099812662,0.47387439,121750.0,121740.0,0.5312466]
[1760099812872,0.63814543,121750.0,121740.0,0.05204]
[1760099813127,0.63814543,121750.0,121740.0,0.02925]
[1760099813493,1.50998543,121750.0,121740.0,0.001]
[1760099813865,0.16428454,121740.0,121730.0,0.00137041]
[1760099814122,0.63815893,121740.0,121730.0,0.00137041]
[1760099814339,0.87007893,121740.0,121730.0,0.00137041]
[1760099814782,0.63815893,121740.0,121730.0,0.05293041]
[1760099815219,0.87007893,121740.0,121730.0,0.02900041]
[1760099816308,0.87007893,121740.0,121730.0,0.03000041]
[1760099818740,0.44199995,121740.0,121730.0,0.03000041]
[1760099818949,0.87007893,121740.0,121730.0,0.03000041]
[1760099820027,0.63815893,121740.0,121730.0,0.03000041]
[1760099820243,0.87007893,121740.0,121730.0,0.03000041]
[1760099821600,0.87007893,121740.0,121730.0,0.01423041]
[1760099821841,0.63815893,121740.0,121730.0,0.00237041]
[1760099822059,0.87003893,121740.0,121730.0,0.00237041]
[1760099826524,0.87003893,121740.0,121730.0,0.01809041]
[1760099826741,0.87003893,121740.0,121730.0,0.05430041]
[1760099830464,0.63815893,121740.0,121730.0,0.03038041]
[1760099830658,0.87003893,121740.0,121730.0,0.03038041]
[1760099831183,0.63815893,121740.0,121730.0,0.00237041]
[1760099831413,0.87003893,121740.0,121730.0,0.00237041]
[1760099834806,0.44191995,121740.0,121730.0,0.03038041]
[1760099835027,0.86999893,121740.0,121730.0,0.05430041]
[1760099835927,0.86999893,121740.0,121730.0,0.03038041]
[1760099836180,0.63815893,121740.0,121730.0,0.03038041]
[1760099836371,0.86999893,121740.0,121730.0,0.03038041]
[1760099838734,0.63815893,121740.0,121730.0,0.03038041]
[1760099838945,0.86999893,121740.0,121730.0,0.03038041]
[1760099839771,0.86999893,121740.0,121730.0,0.01466041]
[1760099841182,0.86999893,121740.0,121730.0,0.03038041]
[1760099843155,0.21007995,121740.0,121730.0,0.0773705]
[1760099843393,0.86999893,121740.0,121730.0,0.0773705]
[1760099846863,0.86995893,121740.0,121730.0,0.05430041]
[1760099849750,0.63815893,121740.0,121730.0,0.05430041]
[1760099849969,0.86995893,121740.0,121730.0,0.05430041]
[1760099851395,0.63815893,121740.0,121730.0,0.05430041]
[1760099851596,0.86995893,121740.0,121730.0,0.05430041]
[1760099853202,0.63815893,121740.0,121730.0,0.05430041]
[1760099853415,0.86995893,121740.0,121730.0,0.05430041]
[1760099854580,0.63815893,121740.0,121730.0,0.05430041]
[1760099854783,0.86995893,121740.0,121730.0,0.0773705]
[1760099855792,0.86995893,121740.0,121730.0,0.05430041]
[1760099859102,0.63815893,121740.0,121730.0,0.05430041]
[1760099859297,0.86995893,121740.0,121730.0,0.05430041]
[1760099860183,0.63815893,121740.0,121730.0,0.05430041]